fUST/lending_fUST_20240419
["ID","MTS","AMOUNT","RATE_DAILY","PERIOD"]
[322914230,1713496249373,-500.0,0.00030136,6]
[322914231,1713496249382,-500.0,0.00030136,6]
[322914232,1713496249393,-500.0,0.00030136,6]
[322914233,1713496249401,-500.0,0.00030136,6]
[322914234,1713496249410,-500.0,0.00030136,6]
[322914235,1713496249419,-500.0,0.00030136,6]
[322914236,1713496249429,-506.18552131,0.00030136,6]
[322914237,1713496249439,-500.0,0.00030136,6]
[322914238,1713496249448,-500.0,0.00030136,6]
[322914239,1713496249456,-500.0,0.00030136,6]
[322914240,1713496249465,-500.0,0.00030136,6]
[322914241,1713496249475,-500.0,0.00030136,6]
[322914242,1713496249484,-500.0,0.00030136,6]
[322914243,1713496249493,-500.72460198,0.00030136,6]
[322914244,1713496249502,-500.0,0.00030136,6]
[322914245,1713496249510,-500.0,0.00030136,6]
[322914246,1713496249519,-766.49,0.00030136,6]
[322914247,1713496249529,-500.0,0.00030136,6]
[322914248,1713496249537,-607.35579216,0.00030136,6]
[322914249,1713496249546,-1029.38,0.00030136,6]
[322914250,1713496249555,-503.02512277,0.00030136,6]
[322914251,1713496249564,-500.0,0.00030136,6]
[322914252,1713496249573,-500.0,0.00030136,6]
[322914253,1713496249582,-500.0,0.00030136,6]
[322914254,1713496249591,-504.23537421,0.00030136,6]
[322914255,1713496249600,-500.0,0.00030136,6]
[322914256,1713496249611,-832.48,0.00030136,6]
[322914257,1713496249620,-500.0,0.00030136,6]
[322914258,1713496249629,-500.0,0.00030136,6]
[322914259,1713496249638,-502.43453756,0.00030136,6]
[322914260,1713496249647,-500.0,0.00030136,6]
[322914261,1713496249656,-500.0,0.00030136,6]
[322914262,1713496249667,-614.12,0.00030136,6]
[322914263,1713496249676,-500.0,0.00030136,6]
[322914264,1713496249686,-896.14,0.00030136,6]
[322914265,1713496249695,-1623.44,0.00030136,6]
[322914266,1713496249704,-500.0,0.00030136,6]
[322914267,1713496249713,-500.0,0.00030136,6]
[322914268,1713496249722,-504.51,0.00030136,6]
[322914269,1713496249730,-521.96,0.00030136,6]
[322914270,1713496249740,-504.51,0.00030136,6]
[322914271,1713496249748,-504.51,0.00030136,6]
[322914272,1713496249758,-193.31450903,0.00030136,6]
[322914274,1713496249767,-500.0,0.00030136,6]
[322914275,1713496249776,-500.0,0.00030136,6]
[322914276,1713496249785,-500.0,0.00030136,6]
[322914277,1713496249794,-500.0,0.00030136,6]
[322914279,1713496249803,-500.0,0.00030136,6]
[322914280,1713496249812,-500.0,0.00030136,6]
[322914281,1713496249821,-500.0,0.00030136,6]
[322914282,1713496249831,-504.22410649,0.00030136,6]
[322914284,1713496249840,-500.0,0.00030136,6]
[322914286,1713496249849,-500.0,0.00030136,6]
[322914288,1713496249862,-500.0,0.00030136,6]
[322914290,1713496249871,-500.0,0.00030136,6]
[322914292,1713496249880,-500.0,0.00030136,6]
[322914294,1713496249889,-500.0,0.00030136,6]
[322914296,1713496249898,-500.0,0.00030136,6]
[322914298,1713496249908,-509.50733343,0.00030136,6]
[322914300,1713496249917,-500.0,0.00030136,6]
[322914302,1713496249926,-500.0,0.00030136,6]
[322914304,1713496249935,-500.0,0.00030136,6]
[322914306,1713496249944,-547.25,0.00030136,6]
[322914308,1713496249954,-500.0,0.00030136,6]
[322914310,1713496249963,-502.25475365,0.00030136,6]
[322914312,1713496249972,-500.0,0.00030136,6]
[322914314,1713496249981,-500.0,0.00030136,6]
[322914316,1713496249990,-500.0,0.00030136,6]
[322914318,1713496249999,-506.70881724,0.00030136,6]
[322914320,1713496250008,-500.0,0.00030136,6]
[322914322,1713496250017,-503.2572355,0.00030136,6]
[322914324,1713496250027,-500.0,0.00030136,6]
[322914326,1713496250036,-500.0,0.00030136,6]
[322914328,1713496250045,-495.74954784,0.00030136,6]
[322914330,1713496250054,-500.0,0.00030136,6]
[322914332,1713496250063,-510.27205363,0.00030136,6]
[322914334,1713496250072,-500.0,0.00030136,6]
[322914336,1713496250082,-500.0,0.00030136,6]
[322914338,1713496250092,-501.99578591,0.00030136,6]
[322914340,1713496250100,-500.0,0.00030136,6]
[322914342,1713496250112,-500.0,0.00030136,6]
[322914344,1713496250121,-500.0,0.00030136,6]
[322914346,1713496250130,-155.74954633,0.00030136,6]
[322914348,1713496250138,-507.69375502,0.00030136,6]
[322914350,1713496250148,-480.35266209,0.00030136,6]
[322914352,1713496250157,-1566.67,0.00030136,6]
[322914354,1713496250167,-500.0,0.00030136,6]
[322914356,1713496250176,-500.0,0.00030136,6]
[322914371,1713496250304,-500.0,0.00030136,6]
[322914373,1713496250315,-500.0,0.00030136,6]
[322914375,1713496250324,-500.0,0.00030136,6]
[322914377,1713496250334,-511.42419852,0.00030136,6]
[322914379,1713496250343,-500.0,0.00030136,6]
[322914380,1713496250354,-500.0,0.00030136,6]
[322914382,1713496250363,-500.0,0.00030136,6]
[322914385,1713496250373,-500.0,0.00030136,6]
[322914387,1713496250385,-280.78034473,0.00030136,6]
[322914389,1713496250395,-500.0,0.00030136,6]
[322914391,1713496250405,-500.0,0.00030136,6]
[322914392,1713496250414,-500.0,0.00030136,6]
[322914395,1713496250424,-500.0,0.00030136,6]
[322914396,1713496250434,-500.0,0.00030136,6]
[322914398,1713496250443,-500.0,0.00030136,6]
[322914400,1713496250453,-500.0,0.00030136,6]
[322914403,1713496250464,-500.0,0.00030136,6]
[322914405,1713496250476,-566.62760746,0.00030136,6]
[322914407,1713496250485,-505.86513601,0.00030136,6]
[322914409,1713496250494,-625.52492769,0.00030136,6]
[322914411,1713496250504,-1212.86,0.00030136,6]
[322914413,1713496250513,-548.1038326,0.00030136,6]
[322914415,1713496250522,-500.0,0.00030136,6]
[322914417,1713496250531,-500.0,0.00030136,6]
[322914419,1713496250539,-1164.39,0.00030136,6]
[322914421,1713496250548,-500.0,0.00030136,6]
[322914423,1713496250557,-1637.79,0.00030136,6]
[322914425,1713496250567,-500.0,0.00030136,6]
[322914427,1713496250577,-500.0,0.00030136,6]
[322914429,1713496250587,-502.83122346,0.00030136,6]
[322914431,1713496250596,-509.53852118,0.00030136,6]
[322914433,1713496250608,-500.0,0.00030136,6]
[322914435,1713496250617,-500.0,0.00030136,6]
[322914437,1713496250626,-500.0,0.00030136,6]
[322914439,1713496250634,-500.0,0.00030136,6]
[322914441,1713496250643,-500.0,0.00030136,6]
[322914443,1713496250652,-500.0,0.00030136,6]
[322914445,1713496250662,-500.0,0.00030136,6]
[322914447,1713496250672,-322.57160408,0.00030136,6]
[322914448,1713496250681,-500.0,0.00030136,6]
[322914450,1713496250692,-500.0,0.00030136,6]
[322914452,1713496250701,-500.0,0.00030136,6]
[322914454,1713496250711,-500.0,0.00030136,6]
[322914457,1713496250721,-500.0,0.00030136,6]
[322914459,1713496250731,-500.0,0.00030136,6]
[322914460,1713496250740,-500.0,0.00030136,6]
[322914462,1713496250750,-500.0,0.00030136,6]
[322914465,1713496250760,-500.0,0.00030136,6]
[322914467,1713496250770,-500.0,0.00030136,6]
[322914468,1713496250779,-500.0,0.00030136,6]
[322914470,1713496250789,-483.56217314,0.00030136,6]
[322914473,1713496250799,-500.0,0.00030136,6]
[322914475,1713496250809,-500.0,0.00030136,6]
[322914477,1713496250818,-500.0,0.00030136,6]
[322914478,1713496250828,-500.0,0.00030136,6]
[322914480,1713496250838,-500.0,0.00030136,6]
[322914481,1713496250847,-500.0,0.00030136,6]
[322914482,1713496250858,-500.0,0.00030136,6]
[322914483,1713496250867,-500.0,0.00030136,6]
[322914484,1713496250876,-504.9291087,0.00030136,6]
[322914485,1713496250886,-914.71,0.00030136,6]
[322914486,1713496250896,-500.0,0.00030136,6]
[322914487,1713496250906,-500.0,0.00030136,6]
[322914488,1713496250916,-945.56,0.00030136,6]
[322914489,1713496250926,-2083.33,0.00030136,6]
[322914490,1713496250935,-500.0,0.00030136,6]
[322914491,1713496250945,-500.0,0.00030136,6]
[322914492,1713496250954,-500.0,0.00030136,6]
[322914493,1713496250964,-507.42751047,0.00030136,6]
[322914494,1713496250974,-506.86622777,0.00030136,6]
[322914495,1713496250984,-500.0,0.00030136,6]
[322914496,1713496250993,-25237.66,0.00030136,6]
[322914497,1713496251003,-500.0,0.00030136,6]
[322914498,1713496251012,-954.56,0.00030136,6]
[322914499,1713496251021,-500.0,0.00030136,6]
[322914500,1713496251031,-500.0,0.00030136,6]
[322914501,1713496251041,-500.0,0.00030136,6]
[322914502,1713496251050,-500.0,0.00030136,6]
[322914503,1713496251059,-981.69,0.00030136,6]
[322914504,1713496251069,-500.0,0.00030136,6]
[322914505,1713496251078,-500.0,0.00030136,6]
[322914506,1713496251087,-500.0,0.00030136,6]
[322914507,1713496251097,-500.0,0.00030136,2]
[322914508,1713496251108,-500.0,0.00030136,6]
[322914509,1713496251117,-500.0,0.00030136,6]
[322914510,1713496251128,-507.0549992,0.00030136,6]
[322914511,1713496251138,-500.0,0.00030136,6]
[322914512,1713496251147,-500.0,0.00030136,6]
[322914513,1713496251157,-1515.19,0.00030136,6]
[322914514,1713496251167,-21078.95,0.00030136,6]
[322914515,1713496251177,-500.0,0.00030136,6]
[322914516,1713496251186,-500.0,0.00030136,6]
[322914517,1713496251196,-500.0,0.00030136,6]
[322914518,1713496251205,-500.0,0.00030136,6]
[322914519,1713496251215,-500.0,0.00030136,6]
[322914520,1713496251225,-500.0,0.00030136,6]
[322914521,1713496251234,-500.0,0.00030136,6]
[322914522,1713496251243,-500.0,0.00030136,6]
[322914523,1713496251253,-500.0,0.00030136,6]
[322914524,1713496251263,-500.0,0.00030136,6]
[322914525,1713496251272,-500.0,0.00030136,6]
[322914526,1713496251281,-150.54670466,0.00030136,6]
[322914527,1713496251291,-500.0,0.00030136,6]
[322914528,1713496251301,-500.0,0.00030136,6]
[322914529,1713496251310,-500.0,0.00030136,6]
[322914530,1713496251320,-500.0,0.00030136,6]
[322914531,1713496251329,-500.0,0.00030136,6]
[322914532,1713496251338,-939.04,0.00030136,6]
[322914533,1713496251348,-505.37450893,0.00030136,6]
[322914534,1713496251360,-500.0,0.00030136,6]
[322914535,1713496251374,-500.0,0.00030136,6]
[322914536,1713496251417,-548.54,0.00030136,6]
[322914537,1713496251426,-500.0,0.00030136,6]
[322914538,1713496251436,-507.39060221,0.00030136,6]
[322914539,1713496251445,-529.34504125,0.00030136,6]
[322914540,1713496251455,-500.0,0.00030136,6]
[322914541,1713496251464,-500.0,0.00030136,6]
[322914542,1713496251474,-500.0,0.00030136,6]
[322914543,1713496251484,-500.0,0.00030136,6]
[322914544,1713496251494,-500.0,0.00030136,6]
[322914545,1713496251504,-500.0,0.00030136,6]
[322914546,1713496251513,-506.03468195,0.00030136,6]
[322914547,1713496251522,-500.0,0.00030136,6]
[322914548,1713496251535,-1039.60330515,0.00030136,14]
[322914549,1713496251548,-500.0,0.00030136,6]
[322914550,1713496251563,-701.18,0.00030136,6]
[322914551,1713496251578,-7968.65,0.00030136,6]
[322914552,1713496251589,-500.0,0.00030136,6]
[322914553,1713496251602,-1687.91,0.00030136,6]
[322914554,1713496251616,-701.26,0.00030136,6]
[322914555,1713496251630,-1252.32,0.00030136,6]
[322914556,1713496251645,-737.38,0.00030136,6]
[322914557,1713496251659,-500.0,0.00030136,6]
[322914558,1713496251674,-500.0,0.00030136,6]
[322914559,1713496251685,-2924.29,0.00030136,6]
[322914560,1713496251698,-500.0,0.00030136,6]
[322914561,1713496251711,-620.9158731,0.00030136,6]
[322914562,1713496251724,-947.82,0.00030136,6]
[322914563,1713496251737,-463.76403182,0.00030136,6]
[322914564,1713496251751,-500.0,0.00030136,6]
[322914565,1713496251765,-500.0,0.00030136,6]
[322914566,1713496251776,-630.27,0.00030136,6]
[322914567,1713496251787,-500.0,0.00030136,6]
[322914568,1713496251802,-500.0,0.00030136,6]
[322914569,1713496251814,-225.06058746,0.00030136,6]
[322914570,1713496251827,-752.33,0.00030136,6]
[322914571,1713496251840,-7001.58,0.00030136,6]
[322914572,1713496251852,-569.48929357,0.00030136,6]
[322914573,1713496251867,-10017.87,0.00030136,6]
[322914574,1713496251880,-362.71703592,0.00030136,6]
[322914575,1713496251894,-500.0,0.00030136,6]
[322914576,1713496251908,-9924.41,0.00030136,6]
[322914577,1713496251923,-500.0,0.00030136,6]
[322914578,1713496251936,-500.0,0.00030136,6]
[322914579,1713496251950,-541.60503942,0.00030136,6]
[322914580,1713496251962,-500.0,0.00030136,6]
[322914581,1713496251972,-500.0,0.00030136,6]
[322914582,1713496251984,-500.0,0.00030136,6]
[322914583,1713496251997,-500.0,0.00030136,6]
[322914584,1713496252010,-817.15,0.00030136,6]
[322914585,1713496252022,-500.0,0.00030136,6]
[322914586,1713496252036,-500.0,0.00030136,6]
[322914587,1713496252049,-500.0,0.00030136,6]
[322914588,1713496252061,-500.0,0.00030136,6]
[322914589,1713496252072,-500.0,0.00030136,6]
[322914590,1713496252085,-500.0,0.00030136,6]
[322914591,1713496252098,-926.53,0.00030136,6]
[322914592,1713496252113,-500.0,0.00030136,6]
[322914593,1713496252124,-500.0,0.00030136,6]
[322914594,1713496252137,-500.0,0.00030136,6]
[322914595,1713496252149,-10693.74,0.00030136,6]
[322914596,1713496252162,-500.0,0.00030136,6]
[322914597,1713496252175,-500.0,0.00030136,6]
[322914598,1713496252188,-500.0,0.00030136,6]
[322914599,1713496252200,-500.0,0.00030136,6]
[322914600,1713496252213,-500.0,0.00030136,6]
[322914601,1713496252225,-1290.52,0.00030136,6]
[322914602,1713496252238,-500.0,0.00030136,6]
[322914603,1713496252250,-500.0,0.00030136,6]
[322914604,1713496252263,-500.0,0.00030136,6]
[322914605,1713496252275,-691.97,0.00030136,6]
[322914606,1713496252289,-500.0,0.00030136,6]
[322914607,1713496252300,-760.89,0.00030136,6]
[322914608,1713496252312,-518.33017643,0.00030136,6]
[322914609,1713496252325,-507.60050889,0.00030136,6]
[322914610,1713496252337,-500.0,0.00030136,6]
[322914611,1713496252350,-500.0,0.00030136,6]
[322914612,1713496252364,-507.79223195,0.00030136,6]
[322914613,1713496252376,-10398.93,0.00030136,6]
[322914614,1713496252389,-504.98975054,0.00030136,6]
[322914615,1713496252402,-385.08909183,0.00030136,6]
[322914616,1713496252415,-500.0,0.00030136,6]
[322914617,1713496252427,-500.0,0.00030136,6]
[322914618,1713496252440,-503.93867669,0.00030136,2]
[322914619,1713496252464,-934.1,0.00030136,6]
[322914620,1713496252486,-502.45406462,0.00030136,6]
[322914621,1713496252504,-160.33998115,0.00030136,2]
[322914622,1713496252522,-512.24042538,0.00030136,6]
[322914623,1713496252539,-500.0,0.00030136,6]
[322914624,1713496252554,-500.0,0.00030136,6]
[322914625,1713496252570,-500.0,0.00030136,6]
[322914626,1713496252585,-500.0,0.00030136,6]
[322914627,1713496252600,-511.14488893,0.00030136,6]
[322914628,1713496252616,-1012.78,0.00030136,6]
[322914629,1713496252629,-500.0,0.00030136,6]
[322914630,1713496252644,-7387.91,0.00030136,6]
[322914631,1713496252657,-234.02898516,0.00030136,2]
[322914632,1713496252672,-500.0,0.00030136,6]
[322914633,1713496252685,-500.0,0.00030136,6]
[322914634,1713496252697,-500.0,0.00030136,6]
[322914635,1713496252710,-500.0,0.00030136,6]
[322914636,1713496252722,-500.0,0.00030136,6]
[322914637,1713496252734,-500.0,0.00030136,6]
[322914638,1713496252748,-500.0,0.00030136,6]
[322914639,1713496252760,-500.0,0.00030136,6]
[322914640,1713496252771,-500.0,0.00030136,6]
[322914641,1713496252783,-500.0,0.00030136,6]
[322914642,1713496252796,-500.0,0.00030136,6]
[322914643,1713496252808,-500.0,0.00030136,6]
[322914644,1713496252819,-500.0,0.00030136,6]
[322914645,1713496252831,-500.0,0.00030136,6]
[322914646,1713496252843,-500.0,0.00030136,6]
[322914647,1713496252856,-500.0,0.00030136,6]
[322914648,1713496252868,-501.94400943,0.00030136,6]
[322914649,1713496252879,-500.0,0.00030136,6]
[322914650,1713496252891,-1079.42,0.00030136,6]
[322914651,1713496252903,-500.0,0.00030136,6]
[322914652,1713496252915,-500.0,0.00030136,6]
[322914653,1713496252926,-500.0,0.00030136,6]
[322914654,1713496252938,-500.0,0.00030136,6]
[322914655,1713496252949,-500.0,0.00030136,6]
[322914656,1713496252960,-7664.95,0.00030136,6]
[322914657,1713496252972,-500.0,0.00030136,6]
[322914658,1713496252984,-500.0,0.00030136,6]
[322914659,1713496252995,-7664.95,0.00030136,6]
[322914660,1713496253007,-333.73809323,0.00030136,6]
[322914661,1713496253019,-7664.95,0.00030136,6]
[322914662,1713496253031,-500.0,0.00030136,6]
[322914663,1713496253043,-7664.95,0.00030136,6]
[322914665,1713496253052,-7664.95,0.00030136,6]
[322914667,1713496253062,-7664.95,0.00030136,6]
[322914668,1713496253072,-7664.95,0.00030136,6]
[322914671,1713496253082,-7664.95,0.00030136,6]
[322914686,1713496253279,-7664.95,0.00030136,6]
[322914689,1713496253292,-500.0,0.00030136,6]
[322914691,1713496253302,-7664.95,0.00030136,6]
[322914692,1713496253312,-7664.95,0.00030136,6]
[322914694,1713496253322,-500.0,0.00030136,2]
[322914697,1713496253332,-7664.95,0.00030136,6]
[322914698,1713496253342,-495.88924995,0.00030136,6]
[322914700,1713496253354,-7664.95,0.00030136,6]
[322914702,1713496253368,-7664.95,0.00030136,6]
[322914704,1713496253378,-7664.95,0.00030136,6]
[322914706,1713496253391,-7664.95,0.00030136,6]
[322914708,1713496253401,-500.0,0.00030136,6]
[322914710,1713496253411,-7664.95,0.00030136,6]
[322914711,1713496253420,-500.0,0.00030136,6]
[322914713,1713496253431,-7664.95,0.00030136,6]
[322914715,1713496253441,-500.0,0.00030136,6]
[322914717,1713496253451,-500.0,0.00030136,6]
[322914719,1713496253463,-7664.95,0.00030136,6]
[322914720,1713496253474,-7664.95,0.00030136,6]
[322914722,1713496253484,-7664.95,0.00030136,6]
[322914724,1713496253494,-7664.95,0.00030136,6]
[322914726,1713496253504,-7664.95,0.00030136,6]
[322914728,1713496253513,-7664.97088592,0.00030136,6]
[322914730,1713496253522,-366.17661492,0.00030136,6]
[322914732,1713496253533,-550.17,0.00030136,6]
[322914734,1713496253543,-500.0,0.00030136,6]
[322914736,1713496253551,-500.0,0.00030136,2]
[322914738,1713496253560,-184.60751712,0.00030136,4]
[322914739,1713496253569,-500.0,0.00030136,6]
[322914740,1713496253580,-500.0,0.00030136,6]
[322914741,1713496253590,-500.0,0.00030136,6]
[322914742,1713496253599,-500.0,0.00030136,6]
[322914743,1713496253613,-500.0,0.00030136,6]
[322914744,1713496253622,-500.0,0.00030136,6]
[322914745,1713496253633,-500.0,0.00030136,6]
[322914746,1713496253642,-500.0,0.00030136,6]
[322914747,1713496253651,-270.00580772,0.00030136,2]
[322914748,1713496253660,-500.0,0.00030136,6]
[322914749,1713496253669,-500.0,0.00030136,6]
[322914751,1713496253678,-500.0,0.00030136,6]
[322914753,1713496253687,-605.09177934,0.00030136,6]
[322914755,1713496253697,-500.0,0.00030136,6]
[322914757,1713496253706,-500.0,0.00030136,6]
[322914759,1713496253715,-500.0,0.00030136,6]
[322914761,1713496253724,-500.0,0.00030136,6]
[322914763,1713496253733,-522.6514145,0.00030136,6]
[322914765,1713496253742,-2649.76,0.00030136,6]
[322914766,1713496253751,-500.0,0.00030136,6]
[322914768,1713496253760,-2649.76,0.00030136,6]
[322914769,1713496253769,-2649.76,0.00030136,6]
[322914770,1713496253778,-2649.76,0.00030136,6]
[322914771,1713496253787,-2649.76,0.00030136,6]
[322914772,1713496253796,-500.0,0.00030136,6]
[322914773,1713496253806,-2649.76,0.00030136,6]
[322914774,1713496253815,-2649.76,0.00030136,6]
[322914775,1713496253824,-2649.76,0.00030136,6]
[322914776,1713496253833,-1369.15,0.00030136,6]
[322914777,1713496253843,-2649.76,0.00030136,6]
[322914778,1713496253852,-2649.76,0.00030136,6]
[322914779,1713496253864,-500.0,0.00030136,6]
[322914780,1713496253873,-500.0,0.00030191,2]
[322914781,1713496253883,-500.0,0.00030246,2]
[322914782,1713496253892,-500.0,0.00030301,2]
[322914783,1713496253901,-500.0,0.00030309,6]
[322914784,1713496253910,-500.0,0.00030356,2]
[322914785,1713496253919,-500.0,0.00030408,6]
[322914786,1713496253928,-500.0,0.00030408,6]
[322914787,1713496253938,-464.30687493,0.00030408,6]
[322914788,1713496253947,-500.0,0.00030408,6]
[322914789,1713496253957,-1471.35,0.00030409,6]
[322914790,1713496253967,-1471.35,0.00030409,6]
[322914791,1713496253976,-1471.35,0.00030409,6]
[322914792,1713496253986,-1471.35,0.00030409,6]
[322914793,1713496253995,-504.51,0.00030409,6]
[322914794,1713496254005,-504.51,0.00030409,6]
[322914795,1713496254014,-504.51,0.00030409,6]
[322914796,1713496254023,-504.51,0.00030409,6]
[322914797,1713496254033,-500.0,0.00030409,6]
[322914798,1713496254042,-500.0,0.00030409,6]
[322914799,1713496254051,-500.0,0.00030409,6]
[322914800,1713496254060,-500.0,0.00030409,6]
[322914801,1713496254069,-500.0,0.00030409,6]
[322914802,1713496254079,-500.0,0.00030409,6]
[322914803,1713496254088,-500.0,0.00030409,6]
[322914804,1713496254097,-500.0,0.00030409,6]
[322914805,1713496254108,-500.0,0.00030409,6]
[322914806,1713496254117,-500.0,0.00030409,6]
[322914807,1713496254127,-500.0,0.00030409,6]
[322914808,1713496254136,-500.0,0.0003041,2]
[322914809,1713496254146,-500.0,0.0003041,6]
[322914810,1713496254155,-500.0,0.0003041,6]
[322914811,1713496254164,-500.0,0.0003041,6]
[322914812,1713496254173,-500.0,0.0003041,6]
[322914813,1713496254182,-500.0,0.0003041,6]
[322914814,1713496254191,-407.44649432,0.0003041,6]
[322914815,1713496254200,-197.6562806,0.0003041,6]
[322914816,1713496254210,-500.0,0.0003041,6]
[322914817,1713496254219,-505.13513042,0.0003041,6]
[322914818,1713496254228,-514.87320657,0.0003041,6]
[322914819,1713496254237,-500.0,0.0003041,6]
[322914820,1713496254246,-506.35020658,0.0003041,6]
[322914821,1713496254255,-500.0,0.0003041,6]
[322914822,1713496254264,-500.0,0.0003041,6]
[322914823,1713496254273,-505.20057834,0.0003041,6]
[322914824,1713496254283,-500.0,0.0003041,6]
[322914825,1713496254292,-500.0,0.0003041,6]
[322914826,1713496254301,-500.0,0.0003041,6]
[322914827,1713496254311,-500.0,0.0003041,6]
[322914828,1713496254320,-500.0,0.0003041,6]
[322914829,1713496254331,-513.54373238,0.0003041,6]
[322914830,1713496254340,-500.0,0.0003041,6]
[322914831,1713496254350,-517.11996856,0.0003041,6]
[322914832,1713496254363,-500.0,0.0003041,6]
[322914833,1713496254373,-500.0,0.0003041,6]
[322914834,1713496254383,-338.94072316,0.0003041,6]
[322914835,1713496254398,-502.88437404,0.0003041,6]
[322914836,1713496254408,-510.52569563,0.0003041,6]
[322914837,1713496254418,-500.0,0.0003041,6]
[322914838,1713496254428,-510.56942775,0.0003041,6]
[322914839,1713496254438,-500.0,0.0003041,6]
[322914840,1713496254447,-500.0,0.0003041,6]
[322914841,1713496254456,-500.0,0.0003041,6]
[322914842,1713496254470,-169.89610003,0.0003041,6]
[322914843,1713496254479,-500.0,0.0003041,6]
[322914844,1713496254488,-500.0,0.0003041,6]
[322914845,1713496254498,-500.0,0.0003041,6]
[322914846,1713496254506,-500.0,0.0003041,6]
[322914847,1713496254516,-500.0,0.0003041,6]
[322914848,1713496254525,-500.0,0.0003041,6]
[322914849,1713496254534,-500.0,0.0003041,6]
[322914850,1713496254543,-1425.02,0.0003041,6]
[322914851,1713496254553,-500.0,0.0003041,6]
[322914852,1713496254563,-500.0,0.0003041,6]
[322914853,1713496254572,-500.0,0.0003041,6]
[322914854,1713496254582,-500.0,0.0003041,6]
[322914855,1713496254591,-412.43569267,0.0003041,6]
[322914856,1713496254600,-500.0,0.0003041,6]
[322914857,1713496254613,-500.0,0.0003041,6]
[322914858,1713496254622,-708.07,0.0003041,6]
[322914859,1713496254632,-500.0,0.0003041,6]
[322914860,1713496254641,-500.0,0.0003041,6]
[322914861,1713496254651,-500.0,0.0003041,6]
[322914862,1713496254661,-500.0,0.0003041,6]
[322914863,1713496254671,-500.0,0.0003041,6]
[322914864,1713496254680,-500.0,0.0003041,6]
[322914865,1713496254690,-516.52197722,0.0003041,6]
[322914866,1713496254699,-500.0,0.0003041,6]
[322914867,1713496254709,-497.56705263,0.0003041,6]
[322914868,1713496254718,-500.0,0.0003041,6]
[322914869,1713496254727,-500.0,0.0003041,6]
[322914870,1713496254736,-542.73,0.0003041,6]
[322914871,1713496254745,-500.0,0.0003041,6]
[322914872,1713496254755,-500.0,0.0003041,6]
[322914873,1713496254764,-503.67368045,0.0003041,6]
[322914874,1713496254773,-500.0,0.0003041,6]
[322914875,1713496254782,-500.0,0.0003041,6]
[322914876,1713496254792,-500.0,0.0003041,6]
[322914877,1713496254801,-500.0,0.0003041,6]
[322914878,1713496254810,-500.0,0.0003041,6]
[322914879,1713496254819,-500.0,0.0003041,6]
[322914880,1713496254829,-500.0,0.0003041,6]
[322914881,1713496254838,-505.282493,0.0003041,6]
[322914882,1713496254847,-504.98027697,0.0003041,6]
[322914883,1713496254858,-500.0,0.0003041,6]
[322914884,1713496254867,-500.0,0.0003041,6]
[322914885,1713496254877,-500.0,0.0003041,6]
[322914886,1713496254886,-500.0,0.0003041,6]
[322914887,1713496254895,-500.0,0.0003041,6]
[322914888,1713496254904,-500.0,0.0003041,6]